lending/lending_fUSD_20250102
["ID","MTS","AMOUNT","RATE_DAILY","PERIOD"]
[347437446,1735809169378,265.3819,9.508e-05,2]
[347437447,1735809190529,500.0,0.0002201,120]
[347437448,1735809193273,191.8943,9.508e-05,2]
[347437449,1735809193431,2000.0,0.0002201,120]
[347437450,1735809199307,3864.6163,9.508e-05,2]
[347437451,1735809200288,500.0,0.0002201,120]
[347437452,1735809215434,150.0,9.489e-05,2]
[347437453,1735809215779,150.0,9.376e-05,2]
[347437454,1735809223843,150.0,9.482e-05,2]
[347437455,1735809237036,332.63594072,9.355e-05,2]
[347437456,1735809263587,148609.71073559,9.6e-05,2]
[347437457,1735809276251,150.0,9.476e-05,2]
[347437458,1735809297044,344.96586531,9.424e-05,2]
[347437459,1735809312519,496.5237,9.508e-05,2]
[347437460,1735809336376,150.0,9.521e-05,2]
[347437461,1735809344798,5062.22,9.057e-05,2]
[347437462,1735809396136,150.0,9.539e-05,2]
[347437463,1735809412448,250.0,9.033e-05,2]
[347437464,1735809455425,150.0,9.567e-05,2]
[347437465,1735809455585,150.0,9.353e-05,2]
[347437466,1735809463552,150.0,9.48e-05,2]
[347437467,1735809486413,167.19,9.305e-05,2]
[347437468,1735809509390,1263.924,9.416e-05,2]
[347437469,1735809523731,150.0,9.425e-05,2]
[347437470,1735809539676,170.385154,9.445e-05,2]
[347437471,1735809573712,1254.16,9.061e-05,2]
[347437472,1735809589206,1500.0,9.465e-05,2]
[347437473,1735809589241,1500.0,9.46e-05,2]
[347437474,1735809589290,1500.0,9.529e-05,2]
[347437475,1735809589325,1500.0,9.42e-05,2]
[347437476,1735809589359,1500.0,9.509e-05,2]
[347437477,1735809589421,1500.0,9.359e-05,2]
[347437478,1735809589481,1500.0,9.392e-05,2]
[347437479,1735809623721,250.0,9.6e-05,2]
[347437480,1735809624007,250.0,9.6e-05,2]
[347437481,1735809624238,250.0,9.6e-05,2]
[347437482,1735809624693,250.0,9.6e-05,2]
[347437483,1735809624811,250.0,9.6e-05,2]
[347437484,1735809624899,250.0,9.6e-05,2]
[347437485,1735809625061,250.0,9.6e-05,2]
[347437486,1735809625200,250.0,9.6e-05,2]
[347437487,1735809625557,250.0,9.6e-05,2]
[347437488,1735809625995,250.0,9.6e-05,2]
[347437489,1735809626178,250.0,9.6e-05,2]
[347437490,1735809626402,250.0,9.6e-05,2]
[347437491,1735809626523,250.0,9.6e-05,2]
[347437492,1735809626718,250.0,9.6e-05,2]
[347437493,1735809626824,250.0,9.6e-05,2]
[347437494,1735809626942,250.0,9.6e-05,2]
[347437495,1735809627169,250.0,9.6e-05,2]
[347437496,1735809627498,250.0,9.6e-05,2]
[347437497,1735809627678,250.0,9.6e-05,2]
[347437498,1735809628120,250.0,9.6e-05,2]
[347437499,1735809628233,250.0,9.6e-05,2]
[347437500,1735809628396,250.0,9.6e-05,2]
[347437501,1735809628491,250.0,9.6e-05,2]
[347437502,1735809628588,250.0,9.6e-05,2]
[347437503,1735809628831,250.0,9.6e-05,2]
[347437504,1735809628959,250.0,9.6e-05,2]
[347437505,1735809629164,250.0,9.6e-05,2]
[347437506,1735809629352,250.0,9.6e-05,2]
[347437507,1735809629527,250.0,9.6e-05,2]
[347437508,1735809629687,250.0,9.6e-05,2]
[347437509,1735809629860,250.0,9.6e-05,2]
[347437510,1735809630101,250.0,9.6e-05,2]
[347437511,1735809630282,250.0,9.6e-05,2]
[347437512,1735809630423,250.0,9.6e-05,2]
[347437513,1735809630603,250.0,9.6e-05,2]
[347437514,1735809630830,250.0,9.6e-05,2]
[347437515,1735809631053,250.0,9.6e-05,2]
[347437516,1735809635528,250.8,9.6e-05,2]
[347437518,1735809681311,500.0,9.505e-05,2]
[347437519,1735809695334,150.0,9.566e-05,2]
[347437520,1735809756711,150.0,9.371e-05,2]
[347437521,1735809769800,437.96,9.071e-05,2]
[347437522,1735809777910,300.228,9.13e-05,2]
[347437523,1735809791818,505.065236,0.00022276,120]
[347437524,1735809794037,1018.091314,0.00022276,120]
[347437525,1735809817961,150.0,9.525e-05,2]
[347437526,1735809818013,150.0,9.557e-05,2]
[347437527,1735809834135,661.36405928,9.6e-05,2]
[347437528,1735809875529,150.0,9.44e-05,2]
[347437529,1735809875711,150.0,9.547e-05,2]
[347437530,1735809875807,150.0,9.453e-05,2]
[347437531,1735809884033,171.13060337,9.41e-05,2]
[347437532,1735809896910,332.63594072,9.349e-05,2]
[347437533,1735809909046,150.0,8.63e-05,2]
[347437534,1735809909405,150.0,9.589e-05,2]
[347437535,1735809911486,150.0,8.63e-05,2]
[347437536,1735809918309,150.0,8.63e-05,2]
[347437537,1735809918636,150.0,9.11e-05,2]
[347437538,1735809919144,150.0,9.589e-05,2]
[347437539,1735809935854,150.0,9.351e-05,2]
[347437549,1735809995814,150.0,9.401e-05,2]
[347437550,1735809999499,503.71,8.219e-05,2]
[347437552,1735810055415,150.0,9.452e-05,2]
[347437553,1735810055573,150.0,9.384e-05,2]
[347437554,1735810071296,1000.0,9.013e-05,2]
[347437556,1735810115464,150.0,9.369e-05,2]
[347437557,1735810115575,150.0,9.528e-05,2]
[347437558,1735810123186,150.0,9.444e-05,2]
[347437559,1735810123600,150.0,9.535e-05,2]
[347437560,1735810132206,2005.06,0.00024584,60]
[347437561,1735810175479,150.0,9.452e-05,2]
[347437562,1735810183921,150.0,9.506e-05,2]
[347437579,1735810235230,-661.62,9.607e-05,2]
[347437583,1735810235240,-49.85500005,9.607e-05,2]
[347437586,1735810235251,-450.14499995,9.607e-05,2]
[347437588,1735810235260,-500.0,9.607e-05,2]
[347437590,1735810235269,-248.25500005,9.607e-05,2]
[347437592,1735810235281,-251.74499995,9.607e-05,2]
[347437594,1735810235290,-500.0,9.607e-05,2]
[347437596,1735810235299,-177.89934005,9.607e-05,2]
[347437598,1735810235311,-322.10065995,9.607e-05,2]
[347437600,1735810235320,-625.98903597,9.607e-05,2]
[347437602,1735810235330,-60.63203598,9.607e-05,2]
[347437605,1735810235341,-2641.51627977,9.607e-05,2]
[347437607,1735810235350,-5372.9933057,9.608e-05,2]
[347437614,1735810235410,-8581.28256916,9.608e-05,2]
[347437619,1735810235448,-347.85228376,9.608e-05,2]
[347437622,1735810235459,-321.05055475,9.608e-05,2]
[347437624,1735810235470,-126417.91567873,9.608e-05,2]
[347437626,1735810235481,-856.04257068,9.608e-05,2]
[347437628,1735810235492,-1691.761356,9.608e-05,2]
[347437632,1735810235516,-19299.6,9.608e-05,2]
[347437640,1735810235579,-299.3112,9.608e-05,2]
[347437642,1735810235590,-2052.3758564,9.608e-05,2]
[347437644,1735810235601,-1929.09117879,9.608e-05,2]
[347437899,1735810237916,-14169.32642363,9.608e-05,2]
[347437902,1735810237928,-9636.39764577,9.608e-05,2]
[347437906,1735810237977,-988.25677415,9.608e-05,2]
[347437907,1735810237988,-20518.52913194,9.608e-05,2]
[347437908,1735810237998,-12043.70941334,9.608e-05,2]
[347437909,1735810238038,-653.67901261,9.608e-05,2]
[347437910,1735810238050,-1477.05,9.608e-05,2]
[347437912,1735810238061,-4987.94296,9.608e-05,2]
[347437918,1735810238108,-880.82102011,9.608e-05,2]
[347438141,1735810240034,-5372.91034216,9.608e-05,2]
[347438144,1735810240048,-3073.13814854,9.608e-05,2]
[347438146,1735810240061,-753.69950238,9.608e-05,2]
[347438157,1735810240151,-42872.14411859,9.608e-05,2]
[347438164,1735810240213,-2706.2398,9.608e-05,2]
[347438167,1735810240226,-2828.55003,9.608e-05,2]
[347438169,1735810240239,-1157.16281985,9.608e-05,2]
[347438171,1735810240251,-4707.05,9.608e-05,2]
[347438176,1735810240288,-482.145,9.608e-05,2]
[347438474,1735810243633,-366.29438351,9.608e-05,2]
[347438475,1735810243665,-1553.75581049,9.608e-05,2]
[347438478,1735810243719,-22429.0,9.608e-05,2]
[347438489,1735810243806,-348.53438188,9.608e-05,2]
[347438713,1735810245992,-27889.71668184,9.608e-05,2]
[347438739,1735810246167,-28996.82185997,9.608e-05,2]
[347438741,1735810246212,-3807.32366691,9.608e-05,2]
[347438742,1735810246236,-22970.94470242,9.608e-05,2]
[347438743,1735810246247,-1209.80429831,9.608e-05,2]
[347438771,1735810246590,-964.96,9.608e-05,2]
[347438927,1735810273342,500.0,9.508e-05,2]
[347438928,1735810295701,150.0,9.366e-05,2]
[347438929,1735810295835,150.0,9.546e-05,2]
[347438930,1735810303751,150.0,9.517e-05,2]
[347438931,1735810306616,289.812,9.13e-05,2]
[347438932,1735810336019,1000.0,9.508e-05,2]
[347438934,1735810356088,150.0,9.507e-05,2]
[347438935,1735810356246,150.0,9.4e-05,2]
[347438936,1735810356305,150.0,9.491e-05,2]
[347438937,1735810365539,338.9418,9.508e-05,2]
[347438938,1735810368615,167.75,9.237e-05,2]
[347438940,1735810389561,500.0,0.00022546,120]
[347438941,1735810406774,250.0,9.018e-05,2]
[347438942,1735810415403,150.0,9.517e-05,2]
[347438943,1735810476167,150.0,9.573e-05,2]
[347438944,1735810476248,150.0,9.383e-05,2]
[347438945,1735810476654,150.0,9.495e-05,2]
[347438946,1735810476746,150.0,9.493e-05,2]
[347438947,1735810477765,291.607,9.13e-05,2]
[347438948,1735810491917,332.63594072,9.533e-05,2]
[347438949,1735810505075,859.0087,9.508e-05,2]
[347438950,1735810535333,150.0,9.568e-05,2]
[347438951,1735810535382,150.0,9.457e-05,2]
[347438952,1735810549794,1500.0,9.575e-05,2]
[347438953,1735810549891,1500.0,9.441e-05,2]
[347438954,1735810550221,328.72811856,9.355e-05,2]
[347438955,1735810595660,150.0,9.457e-05,2]
[347438956,1735810595845,150.0,9.59e-05,2]
[347438957,1735810595896,150.0,9.515e-05,2]
[347438958,1735810640928,379.1996,9.508e-05,2]
[347438959,1735810655680,150.0,9.428e-05,2]
[347438960,1735810655736,150.0,9.465e-05,2]
[347438961,1735810655791,150.0,9.494e-05,2]
[347438962,1735810656157,384.51,9.003e-05,2]
[347438963,1735810715946,150.0,9.453e-05,2]
[347438965,1735810769659,500.0,9.003e-05,2]
[347438966,1735810776748,-500.0,0.00015432,14]
[347438967,1735810779794,-500.0,0.00015432,14]
[347438968,1735810780702,-500.0,0.00015432,14]
[347438969,1735810786875,-450.0,0.00015432,14]
[347438970,1735810878375,-500.0,0.00016658,30]
[347438971,1735810880237,-500.0,0.00016658,30]
[347438972,1735810881548,-271.91,0.00016658,30]
[347438973,1735810881575,-228.09,0.00016659,30]
[347438974,1735810886740,-660.0,0.00016659,30]
[347438975,1735810941429,496.6,8.219e-05,2]
[347438976,1735811001166,250.0,9.043e-05,2]
[347438977,1735811055972,936.9,9.01e-05,2]
[347438978,1735811109796,150.0,9.589e-05,2]
[347438979,1735811111299,150.0,8.63e-05,2]
[347438980,1735811120184,150.0,8.63e-05,2]
[347438981,1735811162568,279.568,9.13e-05,2]
[347438982,1735811169751,1000.0,9.079e-05,2]
[347438983,1735811213135,150000.0,9e-05,2]
[347438984,1735811253992,9234.74474957,9e-05,3]
[347438985,1735811260932,250.0,9.068e-05,2]
[347438986,1735811288634,6023.15,9.038e-05,2]
[347438987,1735811291024,1004.0,9.6e-05,2]
[347438988,1735811339211,944.34,9.558e-05,2]
[347438989,1735811406991,12969.37634355,9.6e-05,2]
[347439003,1735811432240,-831.532,9.607e-05,2]
[347439004,1735811432319,-367.885,9.607e-05,2]
[347439005,1735811432329,-500.0,9.607e-05,2]
[347439006,1735811432338,-634.06,9.607e-05,2]
[347439007,1735811432348,-20084.73059827,9.607e-05,2]
[347439008,1735811432409,-1544.70129621,9.607e-05,2]
[347439009,1735811432433,-1727.4936,9.607e-05,2]
[347439010,1735811432490,-288.59224766,9.607e-05,2]
[347439011,1735811432505,-483.04,9.607e-05,2]
[347439012,1735811433233,-10972.86592009,9.607e-05,2]
[347439013,1735811433251,-1209.10423545,9.607e-05,2]
[347439431,1735811438286,-483.31722616,9.607e-05,2]
[347439542,1735811440319,-854.227843,9.607e-05,2]
[347439543,1735811441281,-397.43043398,9.607e-05,2]
[347439544,1735811441293,-892.74596186,9.607e-05,2]
[347439545,1735811441304,-1697.44999998,9.607e-05,2]
[347439546,1735811441363,-17021.16011344,9.607e-05,2]
[347439547,1735811441375,-1037.142,9.607e-05,2]
[347439558,1735811443221,-2143.420344,9.607e-05,2]
[347439559,1735811443434,-2285.82171714,9.607e-05,2]
[347439560,1735811443519,-1218.59345552,9.607e-05,2]
[347439561,1735811443598,-34764.30568115,9.607e-05,2]
[347439562,1735811443608,-1158.15944762,9.607e-05,2]
[347439563,1735811443618,-186.99789293,9.607e-05,2]
[347439564,1735811443627,-388.23198984,9.607e-05,2]
[347439565,1735811443637,-995716.59894746,9.608e-05,2]
[347439590,1735811446283,-519.06968425,9.607e-05,2]
[347439591,1735811446294,-9196.04177634,9.608e-05,2]
[347439592,1735811446398,-1394240.59042586,9.608e-05,2]
[347439593,1735811446475,-982.1194004,9.608e-05,2]
[347439606,1735811447200,-4000.0,9.608e-05,2]
[347439607,1735811468107,20000.0,9.6e-05,2]
[347439608,1735811542260,4404.90174452,9.408e-05,2]
[347439610,1735811736239,530.05,8.948e-05,2]
[347439611,1735811832871,471.77,8.219e-05,2]
[347439612,1735811853340,267.874,9.13e-05,2]
[347439613,1735812040594,1000.0,8.919e-05,2]
[347439614,1735812224527,165.17,8.936e-05,2]
[347439615,1735812322455,250.0,8.889e-05,2]
[347439618,1735812476145,151.010217,0.0002,120]
[347439619,1735812481288,300.0,9.605e-05,2]
[347439620,1735812485805,151.010217,0.0002,120]
[347439621,1735812487160,151.010217,0.0002,120]
[347439622,1735812489868,151.010217,0.0002,120]
[347439623,1735812490799,151.010217,0.0002,120]
[347439624,1735812492279,151.010217,0.0002,120]
[347439625,1735812493036,151.010217,0.0002,120]
[347439629,1735812537704,256.677,9.13e-05,2]
[347439633,1735812601377,300.0,9.605e-05,2]
[347439643,1735812632521,-1429.65992128,9.606e-05,2]
[347439644,1735812632533,-1442.13838383,9.606e-05,2]
[347439645,1735812632546,-1044.59732,9.606e-05,2]
[347439646,1735812632559,-1433.9548487,9.606e-05,2]
[347439647,1735812632572,-486.17202642,9.606e-05,2]
[347439648,1735812632581,-1095.53047458,9.606e-05,2]
[347439649,1735812632593,-705.39798492,9.606e-05,2]
[347439650,1735812632650,-3870.05261752,9.606e-05,2]
[347439651,1735812632661,-393.12090275,9.606e-05,2]
[347439652,1735812635089,-597.35389002,9.606e-05,2]
[347439908,1735812638298,-22353.82413021,9.606e-05,2]
[347439909,1735812638308,-1000.0,9.607e-05,2]
[347439910,1735812638317,-959.534,9.607e-05,2]
[347439911,1735812638327,-500.0,9.607e-05,2]
[347439912,1735812638336,-500.0,9.607e-05,2]
[347439913,1735812638346,-492.5562928,9.607e-05,2]
[347439914,1735812638357,-122056.89941632,9.608e-05,2]
[347439915,1735812638369,-5327.07086295,9.608e-05,2]
[347439916,1735812638428,-942.71,9.608e-05,2]
[347439917,1735812638439,-34065840.1684688,9.608e-05,2]
[347439918,1735812638628,-324.726,9.608e-05,2]
[347439919,1735812638641,-4354.25776704,9.608e-05,2]
[347439936,1735812640388,-17516.0466854,9.608e-05,2]
[347439937,1735812640399,-5451.41653746,9.608e-05,2]
[347439938,1735812640411,-4163.57104398,9.608e-05,2]
[347439939,1735812640448,-9879059.89209523,9.608e-05,2]
[347439940,1735812640457,-500.0,9.635e-05,2]
[347439941,1735812640467,-24678.75701131,9.649e-05,2]
[347439942,1735812640477,-1100.80328463,9.65e-05,2]
[347439943,1735812640486,-500.0,9.662e-05,2]
[347439944,1735812640495,-500.0,9.689e-05,2]
[347439945,1735812640504,-325.0,9.699e-05,2]
[347439946,1735812640514,-150.0,9.7e-05,2]
[347439947,1735812640524,-150.0,9.7e-05,2]
[347439948,1735812640534,-305.15,9.7e-05,2]
[347439949,1735812640543,-150.13,9.7e-05,2]
[347439950,1735812640552,-16698.33,9.7e-05,2]
[347439951,1735812640564,-150.0,9.7e-05,2]
[347439952,1735812640573,-150.0,9.7e-05,2]
[347439953,1735812640583,-150.0,9.7e-05,2]
[347439954,1735812640592,-500.0,9.717e-05,2]
[347439955,1735812640601,-500.0,9.744e-05,2]
[347439956,1735812640613,-500.0,9.744e-05,2]
[347439957,1735812640622,-2007.708,9.757e-05,2]
[347439958,1735812640631,-3781.208,9.757e-05,2]
[347439959,1735812640641,-924.432,9.757e-05,2]
[347439960,1735812640650,-1338.475,9.757e-05,2]
[347439961,1735812640659,-821.0,9.757e-05,2]
[347439962,1735812640669,-537.313,9.757e-05,2]
[347439963,1735812640679,-3721.0,9.757e-05,2]
[347439964,1735812640688,-500.0,9.772e-05,2]
[347439965,1735812640698,-500.0,9.799e-05,2]
[347439966,1735812640708,-3892.0,9.826e-05,2]
[347439967,1735812640718,-877.684,9.826e-05,2]
[347439968,1735812640728,-150.0,9.826e-05,2]
[347439969,1735812640739,-2685.356,9.826e-05,2]
[347439970,1735812640749,-1103.0,9.826e-05,2]
[347439971,1735812640758,-500.0,9.826e-05,2]
[347439972,1735812640767,-500.0,9.854e-05,2]
[347439973,1735812640776,-500.0,9.881e-05,2]
[347439974,1735812640786,-500.0,9.881e-05,2]
[347439975,1735812640795,-500.0,9.909e-05,2]
[347439976,1735812640804,-500.0,9.936e-05,2]
[347439977,1735812640814,-501.03215739,9.963e-05,2]
[347439979,1735812640823,-161.62824451,9.963e-05,2]
[347439980,1735812640832,-503.46474871,9.963e-05,2]
[347439981,1735812640842,-500.0,9.963e-05,2]
[347439983,1735812640851,-501.88580547,9.963e-05,2]
[347439984,1735812640860,-427.24995785,9.963e-05,2]
[347439985,1735812640871,-500.0,9.963e-05,2]
[347439986,1735812640881,-2017.041,9.964e-05,2]
[347439987,1735812640890,-1269.626,9.964e-05,2]
[347439988,1735812640899,-150.57,9.964e-05,2]
[347439989,1735812640908,-635.431,9.964e-05,2]
[347439990,1735812640918,-566.0,9.964e-05,2]
[347439991,1735812640927,-420.37272098,9.988e-05,2]
[347439992,1735812640937,-674379.84438402,9.99e-05,2]
[347439993,1735812641730,-75249.73569814,9.99e-05,2]
[347439994,1735812641741,-869.36,9.99e-05,2]
[347439995,1735812641782,-384.32300002,9.99e-05,2]
[347439996,1735812641838,-550.7844546,9.99e-05,2]
[347439997,1735812642397,700.0,9e-05,3]
[347440015,1735812643589,-1060.69716,9.99e-05,2]
[347440016,1735812643628,-824.09346857,9.99e-05,2]
[347440017,1735812643641,-4399.11840372,9.99e-05,2]
[347440018,1735812643653,-8915.39040502,9.99e-05,2]
[347440019,1735812643665,-715.20274929,9.99e-05,2]
[347440020,1735812643676,-1004.95109385,9.99e-05,2]
[347440021,1735812643700,-5340.77125313,9.99e-05,2]
[347440027,1735812643933,1500.0,9.1e-05,3]
[347440029,1735812646035,2300.0,9.2e-05,3]
[347440037,1735812646440,-2631.32905608,9.607e-05,2]
[347440038,1735812646452,-3529.09261213,9.607e-05,2]
[347440039,1735812646490,-1601.1541373,9.607e-05,2]
[347440040,1735812646502,-17818.8458627,9.99e-05,2]
[347440041,1735812646513,-5294.64152682,9.99e-05,2]
[347440042,1735812646532,-662.61327738,9.99e-05,2]
[347440043,1735812646657,-317.65,9.99e-05,2]
[347440044,1735812646742,-7189.79366748,9.99e-05,2]
[347440045,1735812646822,-21646.13394726,9.99e-05,2]
[347440052,1735812648158,3100.0,9.3e-05,3]
[347440053,1735812650336,3800.0,9.4e-05,3]
[347440054,1735812652444,700.0,9.5e-05,3]
[347440055,1735812654475,700.0,9.6e-05,3]
[347440056,1735812662636,559.69,9.518e-05,2]
[347440057,1735812675337,264.239,9.49e-05,2]
[347440058,1735812685888,5000.0,9.508e-05,2]
[347440059,1735812688560,2222.0,9.126e-05,2]
[347440060,1735812725029,250.0,9.488e-05,2]
[347440065,1735812858384,483.35,8.219e-05,2]
[347440066,1735812972185,157.010217,0.0002,120]
[347440067,1735812973200,157.010217,0.0002,120]
[347440068,1735812973830,157.010217,0.0002,120]
[347440069,1735812974346,157.010217,0.0002,120]
[347440070,1735812974939,157.010217,0.0002,120]
[347440071,1735812975358,157.010217,0.0002,120]
[347440072,1735812975884,157.010217,0.0002,120]
[347440073,1735812976524,157.010217,0.0002,120]
[347440074,1735812977057,157.010217,0.0002,120]
[347440075,1735812977424,157.010217,0.0002,120]
[347440076,1735812983253,157.010217,0.00023,120]
[347440078,1735812984369,157.010217,0.00023,120]
[347440079,1735812984869,157.010217,0.00023,120]
[347440080,1735812985644,157.010217,0.00023,120]
[347440081,1735812985874,157.010217,0.00023,120]
[347440082,1735812986403,157.010217,0.00023,120]
[347440083,1735812986862,157.010217,0.00023,120]
[347440085,1735812987420,157.010217,0.00023,120]
[347440086,1735812987881,157.010217,0.00023,120]
[347440087,1735812988439,157.010217,0.00023,120]
[347440088,1735812989027,157.010217,0.00023,120]
[347440089,1735812989510,157.010217,0.00023,120]
[347440090,1735812989825,157.010217,0.00023,120]
[347440092,1735812991021,157.010217,0.00023,120]
[347440093,1735812991271,157.010217,0.00023,120]
[347440094,1735812993098,1000.0,9.161e-05,2]
[347440096,1735812995322,157.010217,0.00023,120]
[347440097,1735812996177,157.010217,0.00023,120]
[347440102,1735813010901,168.010217,0.00023,120]
[347440103,1735813225701,250.0,9.183e-05,2]
[347440104,1735813231563,300000.0,9.604e-05,2]
[347440106,1735813361990,253.554,9.49e-05,2]
[347440107,1735813407676,19006.28,9.239e-05,2]
[347440108,1735813450070,13904.57254042,9.482e-05,2]
[347440110,1735813480834,1500.0,9.222e-05,2]
[347440111,1735813490788,255.537,9.49e-05,2]
[347440113,1735813610129,483.79,9.207e-05,2]
[347440114,1735813619395,48798.25269587,9.598e-05,2]
[347440115,1735813667247,375.35,9.179e-05,2]
[347440126,1735813758168,346.08,9.171e-05,2]
[347440129,1735813797695,250.0,9.171e-05,2]
[347440130,1735813815724,10000.0,0.0002,120]
[347440140,1735813831716,-260.95563385,9.644e-05,2]
[347440141,1735813831728,-2416.86140673,9.644e-05,2]
[347440142,1735813831739,-1069.71004005,9.644e-05,2]
[347440143,1735813834257,-1685.47291937,9.644e-05,2]
[347440144,1735813834269,-164.59,9.668e-05,2]
[347440145,1735813834281,-164.84,9.772e-05,2]
[347440146,1735813834291,-150.0,9.864e-05,2]
[347440147,1735813834300,-634.0,9.864e-05,2]
[347440148,1735813834311,-566.0,9.864e-05,2]
[347440149,1735813834321,-1900.0,9.864e-05,2]
[347440150,1735813834331,-919.0,9.864e-05,2]
[347440151,1735813834341,-3774.0,9.864e-05,2]
[347440152,1735813834350,-819.0,9.864e-05,2]
[347440153,1735813834360,-1257.0,9.864e-05,2]
[347440154,1735813834370,-536.0,9.864e-05,2]
[347440155,1735813834379,-3721.0,9.864e-05,2]
[347440156,1735813834388,-458.844,9.864e-05,2]
[347440157,1735813834398,-3892.0,9.864e-05,2]
[347440158,1735813834407,-1266.0,9.864e-05,2]
[347440159,1735813834417,-2013.0,9.864e-05,2]
[347440160,1735813834426,-636.0,9.864e-05,2]
[347440161,1735813834435,-767.627,9.881e-05,2]
[347440162,1735813834445,-581.504,9.89e-05,2]
[347440163,1735813834455,-288.2881,9.89e-05,2]
[347440164,1735813834464,-500.52087732,9.963e-05,2]
[347440165,1735813834473,-500.0,9.963e-05,2]
[347440166,1735813834482,-500.0,9.963e-05,2]
[347440167,1735813834492,-302.59060848,9.963e-05,2]
[347440168,1735813834502,-500.0,9.963e-05,2]
[347440169,1735813834514,-500.58298261,9.963e-05,2]
[347440170,1735813834523,-292.0,9.973e-05,2]
[347440171,1735813834533,-3494.0,9.973e-05,2]
[347440172,1735813834542,-9122.87288299,9.975e-05,2]
[347440173,1735813834551,-200.0,9.975e-05,2]
[347440174,1735813834560,-7558.59816594,9.975e-05,2]
[347440175,1735813834572,-46501.14767306,9.975e-05,2]
[347440176,1735813834583,-46448.3248133,9.975e-05,2]
[347440177,1735813834595,-72663.50001497,9.975e-05,2]
[347440180,1735813837461,-646.23563173,9.668e-05,2]
[347440181,1735813837535,-385.87238127,9.668e-05,2]
[347440182,1735813837546,-1028.66782444,9.668e-05,2]
[347440183,1735813837557,-150.0,9.864e-05,2]
[347440184,1735813837566,-337.52729728,9.975e-05,2]
[347440185,1735813837714,-533.5,9.975e-05,2]
[347440186,1735813837725,-406.3873596,9.975e-05,2]
[347440187,1735813837742,-21684.86224915,9.975e-05,2]
[347440188,1735813837751,-200.0,9.976e-05,2]
[347440189,1735813837761,-171887.13775085,9.976e-05,2]
[347440190,1735813837834,-24246.70982245,9.976e-05,2]
[347440191,1735813837844,-200.0,9.976e-05,2]
[347440192,1735813837853,-41517.57987142,9.977e-05,2]
[347440193,1735813837865,-4042.16836142,9.977e-05,2]
[347440194,1735813837876,-85462.93514883,9.977e-05,2]
[347440204,1735813838227,473.88,8.219e-05,2]
[347440210,1735813839621,-13896.61946613,9.977e-05,2]
[347440211,1735813839635,-1693.55000005,9.977e-05,2]
[347440212,1735813839647,-1197.36579206,9.977e-05,2]
[347440213,1735813839659,-2692.47478749,9.977e-05,2]
[347440214,1735813839670,-1021.095,9.977e-05,2]
[347440215,1735813839683,-483.21795857,9.977e-05,2]
[347440216,1735813839695,-452.45572213,9.977e-05,2]
[347440217,1735813839725,-762.84,9.977e-05,2]
[347440218,1735813839737,-859.757009,9.977e-05,2]
[347440219,1735813839749,-622.68,9.977e-05,2]
[347440220,1735813841502,-302.71657206,9.977e-05,2]
[347440221,1735813841514,-533.699318,9.977e-05,2]
[347440222,1735813841526,-418.59099643,9.977e-05,2]
[347440223,1735813841538,-297.82867182,9.977e-05,2]
[347440224,1735813841549,-3714.86583238,9.977e-05,2]
[347440225,1735813841561,-36161.40706551,9.977e-05,2]
[347440226,1735813841571,-9122.87288299,9.977e-05,2]
[347440227,1735813841580,-51984.68370499,9.978e-05,2]
[347440228,1735813841590,-51984.68370499,9.979e-05,2]
[347440230,1735813841599,-9122.87288299,9.98e-05,2]
[347440232,1735813841608,-3137.56015822,9.98e-05,2]
[347440234,1735813841617,-3137.56015822,9.981e-05,2]
[347440235,1735813841627,-9122.87288299,9.981e-05,2]
[347440236,1735813841637,-3137.56015822,9.984e-05,2]
[347440237,1735813841647,-45836.01007358,9.985e-05,2]
[347440238,1735813841659,-3921.6432,9.985e-05,2]
[347440251,1735813842646,-2227.03043141,9.985e-05,2]
[347440253,1735813842655,-5536.97127669,9.987e-05,2]
[347440255,1735813842666,-5358.95820267,9.987e-05,2]